[Event "Hungarian U20 Junior-ch Men 2024"]
[Site "Budapest"]
[Date "2024.03.14"]
[Round "4"]
[White "Szikszai, Bertalan"]
[Black "Palczert, Matyas"]
[Result "0-1"]
[ECO "B12"]
[WhiteElo "2312"]
[BlackElo "2297"]
[Annotator "RC"]
[PlyCount "104"]
[EventDate "2024.03.10"]
[EventCountry "HUN"]
[SourceTitle "playchess.com"]
[Source "ChessBase"]
[SourceQuality "1"]
[TimeControl "40/5400+30:1800+30"]

1. e4 {[%emt 0:00:34]} c6 {[%emt 0:03:19]} 2. d4 {[%emt 0:00:22]} d5 {[%emt 0:00:06]} 3. e5 {[%emt 0:00:46]} Bf5 {[%emt 0:00:11]} 4. h4 {[%emt 0:00:38]} h5 {[%emt 0:00:18]} 5. Bd3 {[%emt 0:00:38]} Bxd3 {[%emt 0:00:22]} 6. Qxd3 {[%emt 0:00:08]} Qa5+ {[%emt 0:00:15]} 7. c3 {[%emt 0:00:51]} e6 {[%emt 0:03:28]} 8. a4 {[%emt 0:03:14]} Qa6 {[%emt 0:08:53]} 9. Qxa6 {[%emt 0:00:23]} Nxa6 {[%emt 0:00:07]} 10. b4 {[%emt 0:00:11]} Nc7 {[%emt 0:02:50]} 11. a5 {[%emt 0:00:31]} f6 {[%emt 0:06:53]} 12. Bf4 {[%emt 0:12:51]} Nb5 {[%emt 0:05:29]} 13. Ne2 {[%emt 0:16:58]} Ne7 {[%emt 0:10:35]} 14. Nd2 {[%emt 0:23:16]} Ng6 {[%emt 0:02:14]} 15. Bg3 {[%emt 0:00:15]} fxe5 {[%emt 0:01:32]} 16. Bxe5 {[%emt 0:00:17]} Nxe5 {[%emt 0:00:38]} 17. dxe5 {[%emt 0:00:05]} O-O-O {[%emt 0:09:30]} 18. Rh3 {[%emt 0:05:26]} d4 {[%emt 0:08:27]} 19. c4 {[%emt 0:01:50]} Nc3 {[%emt 0:03:25]} 20. c5 {[%emt 0:01:40]} Be7 {[%emt 0:04:05]} 21. Nf4 {[%emt 0:07:37]} Bxh4 {[%emt 0:08:37]} 22. Nc4 {[%emt 0:15:08]} Be7 {[%emt 0:08:16]} 23. Nxe6 {[%emt 0:00:17]} Rd7 {[%emt 0:00:52]} 24. Rd3 {[%emt 0:01:27]} Nd5 {[%emt 0:02:02]} 25. Rb1 {[%emt 0:00:19]} Rh6 {[%emt 0:02:26]} 26. Nxd4 {[%emt 0:03:32]} Nxb4 {[%emt 0:01:33]} 27. Rxb4 {[%emt 0:01:08]} Bxc5 {[%emt 0:00:07]} 28. Ra4 {[%emt 0:03:23]} Bxd4 {[%emt 0:00:13]} 29. Nd6+ {[%emt 0:00:08]} Rdxd6 {[%emt 0:01:14]} 30. exd6 {[%emt 0:00:13]} c5 {[%emt 0:00:13]} 31. a6 {[%emt 0:00:33]} Re6+ {[%emt 0:01:38]} 32. Kf1 {[%emt 0:00:21]} b6 {[%emt 0:01:46]} 33. Rf3 {[%emt 0:01:07]} Rxd6 {[%emt 0:01:25]} 34. Rf7 {[%emt 0:00:25]} Rd7 {[%emt 0:00:15]} 35. Rf8+ {[%emt 0:00:07]} Kc7 {[%emt 0:00:16]} 36. Ra3 {[%emt 0:00:39]} c4 {[%emt 0:01:29]} 37. Ke2 {[%emt 0:01:06]} Bc5 {[%emt 0:00:30]} 38. Ra8 {[%emt 0:00:04]} b5 {[%emt 0:00:39]} 39. Rg3 {[%emt 0:00:42]} Kb6 {[%emt 0:02:40]} 40. Rg5 {[%emt 0:00:00]} Rc7 {[%emt 0:00:00]} 41. Rg6+ {[%emt 0:05:43]} Ka5 {[%emt 0:01:59]} 42. Re8 {[%emt 0:00:46]} Bb4 {[%emt 0:03:30]} 43. Kd1 {[%emt 0:01:48]} Rd7+ {[%emt 0:00:27]} 44. Kc1 {[%emt 0:00:12]} Ka4 {[%emt 0:01:53]} 45. Rb8 {[%emt 0:06:00]} c3 {[%emt 0:03:26]} 46. Rc6 {[%emt 0:07:53]} Rd2 {[%emt 0:01:55]} 47. Rb7 {[%emt 0:00:56]} Ba3+ {[%emt 0:02:19]} 48. Kb1 {[%emt 0:00:13]} b4 {[%emt 0:01:02]} 49. Rxa7 {[%emt 0:07:13]} Kb3 {[%emt 0:01:56]} 50. Rxc3+ {[%emt 0:00:37]} Kxc3 {[%emt 0:00:34]} 51. Rc7+ {[%emt 0:00:03]} Kb3 {[%emt 0:00:09]} 52. a7 {[%emt 0:00:13]} Rd1+ {[%emt 0:00:07]} 0-1

[Event "Hungarian U20 Junior-ch Men 2024"]
[Site "Budapest"]
[Date "2024.03.15"]
[Round "5.1"]
[White "Kolimar, Kristof Pal"]
[Black "Karacsonyi, Gellert"]
[Result "1/2-1/2"]
[ECO "C15"]
[WhiteElo "2282"]
[BlackElo "2386"]
[Annotator "TA"]
[PlyCount "62"]
[EventDate "2024.03.10"]
[EventCountry "HUN"]
[SourceTitle "playchess.com"]
[Source "ChessBase"]
[SourceQuality "1"]
[TimeControl "40/5400+30:1800+30"]

{[%evp 13,62,7,1,4,3,-19,-6,-25,-12,-14,-4,-3,-8,-7,0,0,0,-28,-3,-10,0,-59,-45,-39,-21,-30,0,0,-6,-56,-34,-43,-33,-35,-30,-29,0,-6,0,-15,-21,-20,-2,-2,-5,-8,0,0,71,62,67]} 1. e4 {[%emt 0:00:37]} e6 {[%emt 0:03:57]} 2. d4 {[%emt 0:00:00]} d5 {[%emt 0:00:00]} 3. Nc3 {[%emt 0:00:00]} Bb4 {[%emt 0:01:07]} 4. Nge2 {[%emt 0:00:00]} dxe4 {[%emt 0:02:17]} 5. a3 {[%emt 0:00:03]} Be7 {[%emt 0:04:06]} 6. Nxe4 {[%emt 0:00:08]} Nd7 {[%emt 0:00:25]} 7. Qd3 {[%emt 0:08:58]} Ngf6 {[%emt 0:00:22]} 8. Nxf6+ {[%emt 0:02:04]} Nxf6 {[%emt 0:00:14]} 9. Be3 {[%emt 0:02:13]} b6 {[%emt 0:02:18]} 10. Rg1 {[%emt 0:10:44] Die Stellung ist ausgeglichen.} Bb7 {[%emt 0:05:38]} 11. g4 {[%emt 0:01:28]} h6 {[%emt 0:07:08]} 12. O-O-O {[%emt 0:03:41]} Qd7 {[%emt 0:01:26]} 13. Bg2 {[%emt 0:12:29]} O-O-O {[%emt 0:03:24]} 14. Bxb7+ {[%emt 0:00:50]} Kxb7 {[%emt 0:00:00]} 15. f4 {[%emt 0:03:05]} h5 {[%emt 0:06:53]} 16. g5 {[%emt 0:14:30]} Ne8 {[%emt 0:04:30]} 17. f5 {[%emt 0:07:43]} exf5 $15 {[%emt 0:01:38]} 18. g6 {[%emt 0:00:17]} fxg6 {[%emt 0:03:43]} 19. Nf4 {[%emt 0:04:35]} Bf6 {[%emt 0:07:30]} (19... g5 20. Ng6 Nd6 21. Nxh8 (21. Bxg5 Bxg5+ 22. Rxg5 Rhe8 $14) 21... Rxh8 22. Bxg5 $11) 20. Nxg6 {[%emt 0:00:37]} Rg8 {[%emt 0:00:05]} 21. Bg5 {[%emt 0:06:23]} (21. Bf4 $11) 21... Qe6 {[%emt 0:16:12]} 22. d5 {[%emt 0:05:57]} Qe4 {[%emt 0:01:33]} 23. Qxe4 {[%emt 0:09:50]} fxe4 {[%emt 0:00:09]} 24. Nf4 {[%emt 0:02:22]} h4 {[%emt 0:03:30]} 25. Ne6 {[%emt 0:00:35]} Rd7 {[%emt 0:02:54]} 26. Rg4 {[%emt 0:00:53]} Bxg5+ {[%emt 0:02:20]} 27. Nxg5 {[%emt 0:00:08]} Nf6 {[%emt 0:00:37]} 28. Rxh4 {[%emt 0:00:07]} Re8 {[%emt 0:01:06][%cal Oe8e5]} 29. c4 {[%emt 0:01:05]} Re5 {[%emt 0:00:02]} 30. Ne6 {[%emt 0:01:02]} g5 {[%emt 0:00:02] [#]} (30... c6 $11 31. dxc6+ Kxc6 32. Rxd7 Nxd7 33. Nxg7 e3 34. Rh6+ Kb7) 31. Rh8 $1 $16 {[%emt 0:00:27] Weiß steht aktiver.} ({Bitte nicht} 31. Rh6 Ng4 32. Rh8 Ne3 $14 (32... e3 33. Re1 $11)) 31... Rh7 {[%emt 0:03:59] Gewichteter Fehlerwert: Weiß=0.10 (sehr präzise) /Schwarz=0.14 (sehr präzise) .  Fehler:       	Weiß=2     	Schwarz=1     Ungenau:       	Weiß=1     	Schwarz=1     OK:         	Weiß=11    	Schwarz=9     Bester:       	---       	Schwarz=1     Stark:        	Weiß=1     	---} 1/2-1/2

[Event "Hungarian U20 Junior-ch Men 2024"]
[Site "Budapest"]
[Date "2024.03.15"]
[Round "5.2"]
[White "Bodrogi, Bendeguz"]
[Black "Juhasz, Agoston"]
[Result "1/2-1/2"]
[ECO "A07"]
[WhiteElo "2316"]
[BlackElo "2406"]
[Annotator "TA"]
[PlyCount "127"]
[EventDate "2024.03.10"]
[EventCountry "HUN"]
[SourceTitle "playchess.com"]
[Source "ChessBase"]
[SourceQuality "1"]
[TimeControl "40/5400+30:1800+30"]

{[%evp 11,127,10,14,0,0,4,16,4,23,26,27,28,23,38,56,59,64,49,51,49,54,62,62,56,56,41,77,63,68,71,87,50,52,42,65,43,41,35,39,31,92,87,96,91,256,272,258,263,231,124,250,142,158,111,108,112,106,96,91,104,101,100,176,176,156,162,195,225,226,222,236,195,207,202,268,268,252,247,281,247,275,259,258,219,220,228,289,266,656,620,2222,2039,1937,1316,1809,1804,1632,1430,1288,0,0,0,0,0,0,0,0,0,0,0,0,0,0,0,0,0,0,0]} 1. Nf3 {[%emt 0:01:09]} d5 {[%emt 0:00:45]} 2. g3 {[%emt 0:01:06]} c6 {[%emt 0:00:45]} 3. Bg2 {[%emt 0:00:49]} Nf6 {[%emt 0:01:04]} 4. O-O {[%emt 0:02:10]} Bg4 {[%emt 0:00:28]} 5. d4 {[%emt 0:00:48]} Nbd7 {[%emt 0:01:18][%cal Bb8d7,Bd7b6,Bb6d5][%mdl 32]} 6. c4 {[%emt 0:01:20]} e6 {[%emt 0:00:10]} 7. h3 {[%emt 0:00:17]} Bf5 {[%emt 0:00:58]} 8. Nc3 {[%emt 0:04:48]} h6 {[%emt 0:01:29]} 9. Nd2 {[%emt 0:10:39]} Nb6 {[%emt 0:18:54]} 10. b3 {[%emt 0:17:03]} dxc4 {[%emt 0:06:53]} 11. Nxc4 {[%emt 0:00:35]} Bb4 {[%emt 0:01:11]} 12. Bb2 {[%emt 0:00:24]} Nbd5 {[%emt 0:00:55]} 13. Nb1 {[%emt 0:07:15]} Be4 {[%emt 0:07:21]} 14. a3 {[%emt 0:00:22]} Bxg2 {[%emt 0:01:29]} 15. Kxg2 {[%emt 0:00:10]} Be7 {[%emt 0:00:08]} 16. Nbd2 {[%emt 0:00:19][%cal Bb1d2,Bd2f3,Bf3e5,Be5c4,Bc4e3,Be3f5][%mdl 32]} O-O {[%emt 0:01:02]} 17. e4 {[%emt 0:05:42]} Nb6 {[%emt 0:03:32]} 18. Qe2 {[%emt 0:00:40]} Ne8 {[%emt 0:08:54]} 19. Nf3 {[%emt 0:10:06]} Nc7 {[%emt 0:05:26]} 20. Nfe5 {[%emt 0:04:17]} Bf6 {[%emt 0:02:01]} 21. Rad1 {[%emt 0:03:23]} Nxc4 {[%emt 0:03:51]} 22. Nxc4 {[%emt 0:02:45]} Qd7 {[%emt 0:06:12]} 23. Rd3 {[%emt 0:04:13]} Rad8 {[%emt 0:02:04]} 24. Rfd1 {[%emt 0:01:58][%cal Od4d5]} Be7 {[%emt 0:02:10]} 25. Ne3 {[%emt 0:06:40]} Qe8 {[%emt 0:05:08] [#]} (25... f6 $14) 26. d5 $1 $16 {[%emt 0:03:10]} cxd5 {[%emt 0:02:30]} 27. exd5 {[%emt 0:03:52]} exd5 {[%emt 0:03:56] [#]} (27... Bc5 $16 {was worth a try.}) 28. Bxg7 $1 $18 {[%emt 0:02:41][%mdl 512]} Kxg7 {[%emt 0:01:04]} 29. Nf5+ {[%emt 0:00:04]} (29. Nxd5 $2 Nxd5 (29... Bxa3 30. Qg4+ Kh8 31. Nxc7 $16) 30. Qg4+ Bg5 31. Rxd5 Qc6 32. Qd4+ Kg8 $19) 29... Kh7 {[%emt 0:00:18]} 30. Qxe7 {[%emt 0:03:01]} (30. Nxe7 $18 f5 31. Re3) 30... Qc6 {[%emt 0:04:45]} (30... Qxe7 $16 {was necessary.} 31. Nxe7 Rd7 32. Nxd5 Nxd5 33. Rxd5 Rc7) 31. Rd4 {[%emt 0:00:33]} (31. Nd4 $18 Qd6 32. Re1) 31... Rde8 $16 {[%emt 0:01:19][%cal Bd8e8,Be8e6,Be6f6][%mdl 32]} 32. Qd6 {[%emt 0:00:46] White has more active pieces.} (32. Qh4 $142) 32... Nb5 {[%emt 0:03:46][%csl LRd4,LRd6]} 33. Qxc6 {[%emt 0:00:23]} (33. Qxd5 Nxd4 34. Rxd4 Qxd5+ 35. Rxd5 Rd8 $17) 33... bxc6 {[%emt 0:00:02][%cal Bb7c6,Bc6c5,Bc5d4][%mdl 32]} 34. Rh4 {[%emt 0:00:05]} Re6 {[%emt 0:00:23][%cal Oe6f6]} 35. a4 $36 {[%emt 0:00:04][%mdl 2048] Black is under strong pressure.} Nc3 {[%emt 0:04:55]} 36. Rc1 {[%emt 0:00:08]} Ne4 {[%emt 0:00:33]} (36... Ne2 $16 {might work better.} 37. Rc2 Rd8) 37. Nd4 $18 {[%emt 0:01:26]} Rf6 {[%emt 0:00:01]} 38. f3 {[%emt 0:00:13]} (38. Rxc6 $6 Rxf2+ 39. Kg1 Rf6 $16) 38... c5 {[%emt 0:01:10]} 39. fxe4 {[%emt 0:02:29]} cxd4 {[%emt 0:00:02]} 40. exd5 {[%emt 0:00:00][%mdl 4096] Endgame. KRR-KRR} Re8 {[%emt 0:00:00] Strongly threatening ...Re2+.} 41. Rf4 {[%emt 0:17:37]} (41. Rxd4 Re2+ 42. Kg1 Rf3 $14) 41... Rxf4 {[%emt 0:15:58]} 42. gxf4 {[%emt 0:00:07] KR-KR} Re2+ {[%emt 0:02:44]} 43. Kf3 {[%emt 0:06:32]} Re3+ {[%emt 0:00:07]} 44. Kg4 {[%emt 0:00:06] aiming for d6.} Kg7 {[%emt 0:04:12][%cal Og7f6]} 45. Kf5 {[%emt 0:02:33] d6 would now be deadly.} Kf8 {[%emt 0:01:52][%cal Of8e7] [#]} 46. Rc4 $1 {[%emt 0:05:54]} d3 {[%emt 0:01:08][%cal Of8e7]} 47. h4 {[%emt 0:01:05]} Ke7 {[%emt 0:05:17]} 48. Rd4 {[%emt 0:00:13]} Kd6 {[%emt 0:00:31]} 49. b4 {[%emt 0:00:05][%cal Bb3b4,Bb4a5,Ba5a6][%mdl 32]} a5 $2 {[%emt 0:03:06]} (49... h5 50. a5 Rg3) 50. bxa5 {[%emt 0:00:42]} Kc5 {[%emt 0:00:09] [#]} 51. d6 $1 {[%emt 0:00:04] d7 would kill now.} Kxd4 {[%emt 0:00:23] KR-KP} 52. d7 {[%emt 0:00:03]} d2 {[%emt 0:00:28]} 53. d8=Q+ {[%emt 0:00:04] KQ-KR} (53. d8=B {gets mated.} Re6 (53... d1=B $2 54. Bb6+ Kd3 55. Kf6 $19) 54. Bf6+ Kd5 (54... Rxf6+ 55. Kxf6 d1=Q 56. Kxf7 Qxa4 57. Ke7 Qxa5 58. Kf6 Ke4 59. Ke7 Qc5+ 60. Kf6 Qc6+ 61. Kf7 Kf5 62. Kg7 Qg6+ 63. Kh8 Kf6 64. h5 Qg7#) 55. Kg4 d1=Q+ (55... d1=B+ $2 56. Kg3 $19) 56. Kh3 Qf3+ (56... Rxf6 {leads to mate.} 57. Kg3 Rg6+ 58. Kf2 Qg1+ 59. Kf3 Qg2+ 60. Ke3 Rg3#) (56... Qh1+ $2 57. Kg3 Qg1+ 58. Kh3 Re3#) 57. Kh2 Re2+ 58. Kg1 Qg2#) 53... Kc3 {[%emt 0:00:02]} 54. a6 {[%emt 0:00:56]} Rd3 {[%emt 0:01:18]} 55. Qa5+ $2 {[%emt 0:00:27]} (55. Qc7+ $18 Kb2 56. a7 (56. Qxf7 $2 {loses.} d1=Q $19)) 55... Kc2 $1 $11 {[%emt 0:00:30] The position is equal.} 56. Qc5+ {[%emt 0:02:30]} Rc3 {[%emt 0:00:34]} 57. Qf2 {[%emt 0:00:05]} Kc1 $1 {[%emt 0:00:55]} 58. Qd4 {[%emt 0:01:12]} Rc8 {[%emt 0:00:33]} 59. Qe3 {[%emt 0:00:35] Hoping for Kf6.} Kc2 {[%emt 0:00:18]} 60. Qe4+ {[%emt 0:00:04]} Kc1 {[%emt 0:00:13]} 61. Qe3 {[%emt 0:01:18] Black must now prevent a7.} Kc2 {[%emt 0:00:06]} 62. Qe4+ {[%emt 0:00:05]} Kc1 {[%emt 0:00:07]} 63. Qe3 {[%emt 0:00:52] Threatens to win with a7.} Kc2 {[%emt 0:00:11]} 64. Qe4+ {[%emt 0:00:12] Black escapes into a draw.   Weighted Error Value: White=0.29 (precise) /Black=0.21 (precise) .  Loses game:     	---       	Black=1      Mistake:       	White=3     	Black=4      Inaccurate:     	White=1     	Black=3      OK:         	White=20    	Black=20     Best:        	White=6     	Black=9      Strong:       	White=2     	Black=1} 1/2-1/2

[Event "Hungarian U20 Junior-ch Men 2024"]
[Site "Budapest"]
[Date "2024.03.15"]
[Round "5.3"]
[White "Palczert, Matyas"]
[Black "Pasztor, Balazs"]
[Result "1-0"]
[ECO "B53"]
[WhiteElo "2297"]
[BlackElo "2406"]
[Annotator "TA"]
[PlyCount "115"]
[EventDate "2024.03.10"]
[EventCountry "HUN"]
[SourceTitle "playchess.com"]
[Source "ChessBase"]
[SourceQuality "1"]
[TimeControl "40/5400+30:1800+30"]

{[%evp 10,115,16,0,-1,-45,-37,-43,-15,-17,-9,-16,8,-20,-14,-29,-20,-16,-21,-28,-16,-27,6,-34,8,0,0,0,0,0,0,0,0,0,10,8,7,0,0,0,13,10,9,24,20,0,0,0,0,0,0,0,0,0,0,0,0,0,0,0,43,50,50,50,95,97,79,43,61,0,95,131,398,371,358,345,602,597,611,604,655,620,936,941,898,863,950,923,1743,1837,7337,6621,4943,4602,29982,29980,29987,29988,29989,29988,29989,29989,29991,29992,29994,29995,29995,29994]} 1. e4 {[%emt 0:01:19]} c5 {[%emt 0:01:33]} 2. Nf3 {[%emt 0:00:50]} d6 {[%emt 0:00:06]} 3. d4 {[%emt 0:00:16]} cxd4 {[%emt 0:00:05]} 4. Qxd4 {[%emt 0:00:22]} Nc6 {[%emt 0:00:23]} 5. Qe3 {[%emt 0:00:38]} g6 {[%emt 0:00:12]} 6. c4 {[%emt 0:02:36] B53: Sicilian: 2...d6: Lines with Qxd4.} Bg7 {[%emt 0:04:46]} 7. Be2 {[%emt 0:02:59]} Qb6 {[%emt 0:09:25]} 8. Qd2 {[%emt 0:18:48]} Bg4 {[%emt 0:09:06]} 9. Nc3 {[%emt 0:04:33]} Nf6 {[%emt 0:00:36]} 10. O-O {[%emt 0:01:54]} O-O {[%emt 0:00:54]} 11. h3 $146 {[%emt 0:04:41]} ({Predecessor:} 11. Rb1 a6 12. b3 Rac8 13. Bb2 Bxf3 14. Bxf3 Nd4 15. Qe3 e5 16. Ne2 Nd7 17. Rbd1 Nxe2+ 18. Qxe2 {0-1 Alexakis,G (2203)-Basso,P (2506) Chania Theodorakis Memorial 2nd 2023 (3)}) 11... Bxf3 {[%emt 0:02:29]} 12. Bxf3 {[%emt 0:00:27]} Qd4 {[%emt 0:14:31]} 13. Qxd4 {[%emt 0:14:40]} Nxd4 {[%emt 0:00:06]} 14. Bd1 {[%emt 0:04:00]} Rfc8 {[%emt 0:07:59]} 15. b3 {[%emt 0:04:13]} b5 {[%emt 0:03:07]} 16. e5 {[%emt 0:05:54]} Nd7 {[%emt 0:13:13]} (16... dxe5 {simplifies} 17. Nxb5 Nxb5 18. cxb5 e4) 17. Nxb5 {[%emt 0:08:21]} Bxe5 {[%emt 0:00:12]} 18. Nxd4 {[%emt 0:00:38]} Bxd4 {[%emt 0:00:08]} 19. Rb1 {[%emt 0:00:11]} Rab8 {[%emt 0:01:47]} 20. Bg4 {[%emt 0:02:56]} f5 {[%emt 0:03:01]} 21. Bf3 {[%emt 0:06:55]} Nf6 {[%emt 0:00:53]} 22. Rd1 {[%emt 0:02:56]} e5 {[%emt 0:00:35]} (22... Rxc4 $2 23. Bg5 Bxf2+ (23... Rcb4 $2 24. a3 $18) 24. Kxf2 Rc2+ 25. Rd2 $18) 23. Bb2 {[%emt 0:04:29]} Bxb2 {[%emt 0:01:20]} 24. Rxb2 {[%emt 0:00:12]} Rb6 {[%emt 0:03:17]} 25. Rbd2 {[%emt 0:00:16]} e4 {[%emt 0:02:16]} 26. Be2 {[%emt 0:00:10]} Rcc6 {[%emt 0:00:46]} 27. Rd4 {[%emt 0:01:33]} Kf7 {[%emt 0:02:55]} 28. f3 {[%emt 0:01:29]} Ke6 {[%emt 0:03:15]} 29. fxe4 {[%emt 0:00:14]} fxe4 {[%emt 0:04:57]} 30. Kf2 {[%emt 0:01:48]} a5 {[%emt 0:00:55]} 31. Ke3 {[%emt 0:01:48]} Rc5 {[%emt 0:00:18]} 32. g4 {[%emt 0:01:09]} h6 {[%emt 0:01:10]} 33. Bf1 {[%emt 0:01:04]} Ke5 {[%emt 0:01:04]} 34. Be2 {[%emt 0:01:14]} d5 {[%emt 0:01:22]} 35. h4 {[%emt 0:00:35]} dxc4 {[%emt 0:01:26]} 36. bxc4 {[%emt 0:00:11]} Ke6 $1 {[%emt 0:02:20]} 37. Rd8 {[%emt 0:00:27]} g5 {[%emt 0:01:28]} 38. h5 {[%emt 0:00:42]} Rb2 {[%emt 0:02:26]} 39. Rh8 {[%emt 0:01:11]} ({White should play} 39. R1d2 $1 $14 Rb1 40. Ra8) 39... Rxa2 {[%emt 0:01:13]} (39... Ke5 $1 $11 {remains equal.} 40. Rf1 (40. Rxh6 $2 Rxc4 41. Rxf6 Rc3+ 42. Bd3 Kxf6 $19) 40... Nd5+ 41. cxd5 Rc3+ 42. Kf2 Rf3+ 43. Ke1 (43. Kg1 Rxe2 44. Rxf3 exf3 $19) 43... Rb1+ 44. Kd2 Rb2+ 45. Kd1 Rb1+ 46. Kd2 Rb2+ 47. Ke1 (47. Kd1 Rb1+ 48. Kd2 $11) 47... Rb1+ 48. Kd2) 40. Rxh6 $16 {[%emt 0:00:00]} Ke5 $2 {[%emt 0:00:00][%mdl 8192]} (40... Ra3+ $16 {was necessary.} 41. Kf2 (41. Kd4 Rc8 $11) 41... Ra2) 41. Rg6 $18 {[%emt 0:06:16]} Ra3+ {[%emt 0:05:52]} 42. Kf2 {[%emt 0:00:54]} Ke6 $2 {[%emt 0:12:16]} (42... Nxg4+ 43. Bxg4 Rxc4) 43. Rb1 $18 {[%emt 0:04:02]} Rc6 {[%emt 0:01:41]} 44. Rxg5 {[%emt 0:01:07]} a4 {[%emt 0:00:46]} 45. Rbb5 {[%emt 0:02:58]} Rh3 {[%emt 0:01:39]} 46. Rg6 {[%emt 0:01:07]} Rh2+ {[%emt 0:02:12]} 47. Ke3 {[%emt 0:02:11]} Rh3+ {[%emt 0:02:36]} 48. Kf4 {[%emt 0:00:54]} Ke7 {[%emt 0:01:04]} 49. g5 {[%emt 0:03:06]} Nxh5+ {[%emt 0:00:45]} 50. Bxh5 {[%emt 0:00:10]} (50. Kxe4 $2 {perishes.} Ng3+ (50... Rxg6 $2 51. Kf5 $19) 51. Ke5 Rxg6 $19) 50... Rxg6 {[%emt 0:00:31]} 51. Bxg6 {[%emt 0:00:10]} a3 {[%emt 0:00:07]} 52. Bxe4 {[%emt 0:00:28]} Kf8 {[%emt 0:00:39]} 53. Ra5 {[%emt 0:00:16]} Rc3 {[%emt 0:00:12]} 54. c5 {[%emt 0:00:29]} Ke7 {[%emt 0:00:46]} 55. Ke5 {[%emt 0:00:58]} Rg3 {[%emt 0:00:12]} 56. Ra7+ {[%emt 0:00:09]} Kf8 {[%emt 0:00:10]} 57. Kf6 {[%emt 0:00:34]} Ke8 {[%emt 0:00:06]} 58. Bf5 {[%emt 0:00:20]} 1-0

[Event "Hungarian U20 Junior-ch Men 2024"]
[Site "Budapest"]
[Date "2024.03.15"]
[Round "5.4"]
[White "Tancsa, Tamas"]
[Black "Szikszai, Bertalan"]
[Result "0-1"]
[ECO "B21"]
[WhiteElo "2273"]
[BlackElo "2312"]
[Annotator "TA"]
[PlyCount "60"]
[EventDate "2024.03.10"]
[EventCountry "HUN"]
[SourceTitle "playchess.com"]
[Source "ChessBase"]
[SourceQuality "1"]
[TimeControl "40/5400+30:1800+30"]

{[%evp 10,60,-20,-38,-21,-23,-9,-79,-75,-70,-62,-60,-43,-83,-61,-64,-61,-92,-74,-87,-95,-99,-85,-77,-61,-150,-140,-141,-127,-130,-109,-173,-119,-247,-252,-228,-229,-425,-407,-412,-398,-624,-618,-1061,-1047,-29994,-1005,-1333,-1452,-1844,-1193,-29987,-29988]} 1. e4 {[%emt 0:06:44]} c5 {[%emt 0:00:47]} 2. d4 {[%emt 0:00:04]} cxd4 {[%emt 0:00:24]} 3. c3 {[%emt 0:00:05]} dxc3 {[%emt 0:01:20]} 4. Nxc3 {[%emt 0:00:06]} Nc6 {[%emt 0:00:06]} 5. Nf3 {[%emt 0:00:10]} e6 {[%emt 0:00:51]} 6. Bf4 {[%emt 0:10:40]} a6 {[%emt 0:03:33]} 7. Bd3 {[%emt 0:02:29]} d6 {[%emt 0:08:02]} 8. a4 {[%emt 0:02:30]} (8. O-O $11) 8... Be7 $17 {[%emt 0:03:17] Black is better.} 9. O-O {[%emt 0:13:51]} e5 {[%emt 0:07:56]} 10. Be3 {[%emt 0:10:04]} Nf6 {[%emt 0:02:53]} 11. a5 {[%emt 0:07:01]} O-O {[%emt 0:21:42]} 12. Bb6 {[%emt 0:05:37]} Qe8 {[%emt 0:00:48]} 13. Bc4 {[%emt 0:10:53]} h6 {[%emt 0:13:34]} 14. Qb3 {[%emt 0:02:27]} Bd8 {[%emt 0:03:20]} 15. Rfd1 {[%emt 0:11:13]} Bxb6 {[%emt 0:00:33]} 16. Qxb6 {[%emt 0:00:30]} Bg4 {[%emt 0:00:30]} 17. Ra3 {[%emt 0:00:30]} (17. Rxd6 $15 Bxf3 18. Rxf6 gxf6 19. Qe3) 17... Bxf3 {[%emt 0:00:30]} 18. gxf3 {[%emt 0:00:30]} Qe7 {[%emt 0:00:30]} 19. Ne2 {[%emt 0:00:30] Inhibits Nd4.} Nh5 {[%emt 0:00:30]} 20. Bd5 {[%emt 0:00:30]} (20. Kh1 $17) 20... Rac8 {[%emt 0:00:30]} (20... Nd4 $19 21. Nxd4 (21. Qxb7 $2 {too greedy.} Nxe2+ 22. Kf1 Qh4 $19) 21... exd4) 21. Rc3 {[%emt 0:00:30] [#] White does not recover from this.} (21. Kh1 $17 {was necessary.}) 21... Nd4 $1 $19 {[%emt 0:00:30][%mdl 512]} 22. Nxd4 {[%emt 0:00:30]} exd4 {[%emt 0:00:30]} 23. Rxc8 $2 {[%emt 0:00:30]} (23. Qxd4 Nf4 24. Kf1) 23... Rxc8 {[%emt 0:00:30]} 24. Qxb7 {[%emt 0:00:30] [#]} Rc7 {[%emt 0:00:30]} 25. Qa8+ {[%emt 0:00:30]} ({But not} 25. Qxa6 Qg5+ 26. Kh1 Nf4 $19) (25. Qb4 $142 Nf4 26. Kf1) 25... Kh7 {[%emt 0:00:30]} 26. Kh1 {[%emt 0:00:30]} Nf4 {[%emt 0:00:30]} 27. e5 {[%emt 0:00:30]} Qxe5 {[%emt 0:00:30]} (27... Qg5 $142 28. Be4+ g6 29. Bxg6+ fxg6 30. Qh8+ Kxh8 31. Rg1 Qxg1+ 32. Kxg1 Rc1#) 28. Be4+ {[%emt 0:00:30]} f5 {[%emt 0:00:30]} 29. Bb1 {[%emt 0:00:30]} Re7 {[%emt 0:00:30][%cal Oe5e1] ( -> ...Qe1+!)} 30. Qxa6 {[%emt 0:00:30]} Qd5 {[%emt 0:00:30] Weighted Error Value: White=1.41/Black=0.48.  Mistake:       	White=6     	Black=1      Inaccurate:     	White=3     	---        OK:         	White=3     	Black=3      Best:        	---       	Black=3      Brilliant:      	---       	Black=1} 0-1